Cogmind - Beta 13 @@@ ROGUE MODE // 2024.03.11 @ 18:31:49 Player: Dumalacath Result: Destroyed by U0-MR4(R) with Subdweller Laser Performance ------------- Evolutions (0) 0 Regions Visited (2) 400 Robots Destroyed (21) 105 Value Destroyed (496) 496 Prototype IDs (0) 0 Alien Tech Used (0) 0 Bonus (0) 0 TOTAL SCORE: 1001 Bonus ------- None Cogmind --------- Core Integrity 0/250 Matter 290/300 Energy 14/100 System Corruption 0% Temperature Cool (6) Movement Walking (120) Location -10/Subcaves Parts ------- > --- POWER (1) -------- (None) > --- PROPULSION (2) --- Aluminum Leg Aluminum Leg > --- UTILITY (2) ------ Medium Storage Unit Seismic Detector > --- WEAPON (2) ------- Subdweller Laser > --- INVENTORY (10) --- Ion Engine Light Ion Engine Aluminum Leg Aluminum Leg Subdweller Optics Sensor Array Transport Network Coupler Targeting Computer Peak State ------------ > --- POWER ------------ Light Ion Engine > --- PROPULSION ------- Aluminum Leg Aluminum Leg > --- UTILITY ---------- Medium Storage Unit Terrain Scanner > --- WEAPON ----------- Subdweller Laser Light Assault Rifle > --- INVENTORY -------- Ion Engine Light Ion Engine Aluminum Leg Aluminum Leg Subdweller Optics Sensor Array Seismic Detector Transport Network Coupler Targeting Computer Beam Cannon [Rating: 9] Favorites ----------- Power Light Ion Engine Engine Light Ion Engine Propulsion Aluminum Leg Leg Aluminum Leg Utility Medium Storage Unit Device Terrain Scanner Storage Medium Storage Unit Weapon Light Assault Rifle Energy Gun Small Laser Energy Cannon Beam Cannon Ballistic Gun Light Assault Rifle Build | -11 -10 -10 ------- Run | Yrd Mat Sub Slots Evolved . | . . . Power . | . . . Propulsion . | . . . Utility . | . . . Weapon . | . . . Parts Attached 23 | 7 12 4 Power 4 | 2 2 . Engine 4 | 2 2 . Core . | . . . Reactor . | . . . Propulsion 5 | 2 3 . Treads . | . . . Leg 5 | 2 3 . Wheel . | . . . Hover . | . . . Flight . | . . . Utility 6 | 1 4 1 Device 4 | . 3 1 Storage 2 | 1 1 . Processor . | . . . Hackware . | . . . Protection . | . . . Artifact . | . . . Weapon 8 | 2 3 3 Energy Gun 4 | 2 . 2 Energy Cannon 2 | . 1 1 Ballistic Gun 2 | . 2 . Ballistic Cannon . | . . . Launcher . | . . . Special Weapon . | . . . Impact Weapon . | . . . Slashing Weapon . | . . . Piercing Weapon . | . . . Special Melee Weapon . | . . . Unidentified Prototypes . | . . . Parts Lost 5 | . 1 4 Power 1 | . . 1 Propulsion . | . . . Utility 1 | . . 1 Weapon 3 | . 1 2 Highest Loss Streak 3 | . 1 3 To Critical Strikes . | . . . Average Slot Usage (%) 98 | . 98 98 Engine 13 | . 14 13 Leg 28 | . 28 28 Device 13 | . 12 14 Storage 14 | . 14 14 Energy Gun 2 | . 2 . Energy Cannon 12 | . 11 13 Ballistic Gun 13 | . 13 13 Naked Turns . | . . . Heaviest Build 20 | 13 20 18 Greatest Support 20 | 20 20 20 Greatest Overweight (x) . | . . . Average Overweight (x) . | . . . Largest Inventory Capacity 10 | 8 10 10 Average Capacity 9 | 7 9 10 Most Carried 10 | 6 10 10 Average Carried 8 | 3 8 9 Final Capacity 10 | 8 10 10 Final Carried 10 | 6 10 8 Class Distribution -------------------- 78% | Scavenger-Mutant 21% | Mutant Dominant Class ---------------- Scavenger-Mutant | -10/Materials Scavenger-Mutant | -10/Subcaves Resources | -11 -10 -10 ----------- Run | Yrd Mat Sub Matter Collected 456 | 180 237 39 Remotely . | . . . Salvage Created 673 | . 529 144 Parts 45 | . 27 18 Haulers Intercepted 2 | . 2 . Recyclers Shooed 2 | . 2 . Parts Field Recycled . | . . . Retrieved Matter . | . . . Parts Self-Destructed 6 | . . 6 Prevented . | . . . Kills | -11 -10 -10 ------- Run | Yrd Mat Sub Combat Hostiles Destroyed 16 | . 10 6 Guns 6 | . 4 2 Cannons 9 | . 6 3 Classes Destroyed 6 | . 5 1 Hauler 2 | . 2 . Operator 1 | . 1 . Watcher 2 | . 2 . Swarmer 6 | . 3 3 Grunt 7 | . 7 . Subdweller 3 | . . 3 Best Kill Streak 3 | . 3 3 Combat Bots Only 3 | . 3 3 Max Kills in Single Turn 1 | . 1 1 Gunslinging . | . . . Exploded . | . . . Melee . | . . . Uniques/NPCs Destroyed . | . . . Combat | -11 -10 -10 -------- Run | Yrd Mat Sub Hostile Shots Fired 93 | . 45 48 Missed 17 | . 6 11 Damage Taken 1023 | . 486 537 Core 254 | . 96 158 Absorbed by Shields . | . . . Core Remaining (%) 100 | 100 . . Volleys Fired 85 | . 54 31 Largest 2 | . 2 2 Hottest 80 | . 80 80 Shots Fired 156 | . 108 48 Gun 104 | . 79 25 Cannon 52 | . 29 23 Launcher . | . . . Special . | . . . Kinetic 66 | . 49 17 Thermal 85 | . 54 31 Explosive . | . . . Electromagnetic 5 | . 5 . Robot Hit Streak 13 | . 9 13 Robot Miss Streak 6 | . 6 2 Penetration Max . | . . . Secondary Targets . | . . . Shots Hit Robots 80 | . 55 25 Core Hits 36 | . 26 10 Critical Kills 2 | . 1 1 Critical Parts Destroyed 1 | . . 1 Critical Strikes 3 | . 1 2 Meltdown 1 | . . 1 Destroy 2 | . 1 1 Melee Attacks . | . . . Impact . | . . . Slashing . | . . . Piercing . | . . . Sneak Attacks . | . . . Combat Hostiles . | . . . Follow-up Attacks . | . . . Damage Inflicted 1091 | . 702 389 Guns 584 | . 387 197 Cannons 489 | . 297 192 Explosions . | . . . Melee . | . . . Ramming 18 | . 18 . Kinetic 254 | . 180 74 Thermal 780 | . 465 315 Explosive . | . . . Electromagnetic 39 | . 39 . Impact . | . . . Slashing . | . . . Piercing . | . . . Highest Corruption . | . . . Average Corruption . | . . . Corruption Purged . | . . . Corruption Blocked . | . . . Overload Shots . | . . . Overflow Damage 6 | . 6 . Projectiles 6 | . 6 . Explosions . | . . . Melee . | . . . Knockbacks . | . . . Impact . | . . . Kinetic . | . . . Secondary . | . . . Self-Inflicted Damage . | . . . Shots . | . . . Rammed . | . . . Targets Rammed 5 | . 5 . Kicked 5 | . 5 . Crushed . | . . . Highest Temperature 171 | . 171 15 Average Temperature 50 | . 53 7 Received Heat Transfer 360 | . 246 114 Siege Activations . | . . . Robots Corrupted . | . . . Combat Hostiles . | . . . Parts Fried . | . . . Impact Corruptions . | . . . Robots Melted 1 | . . 1 Combat Hostiles 1 | . . 1 Parts Melted 5 | . 2 3 Heat Transferred 1561 | . 1004 557 Parts Sabotaged . | . . . Parts Stolen . | . . . Parts Stripped . | . . . Power Chain Reactions . | . . . Alert | -11 -10 -10 ------- Run | Yrd Mat Sub Peak Influence 289 | . 289 . Initial . | . . . Average 88 | . 92 . Maximum Alert Level 1 | . 1 . Low Security (%) 94 | 100 93 . Level 1 5 | . 6 . Level 2 . | . . . Level 3 . | . . . Level 4 . | . . . Level 5 . | . . . High Security . | . . . Max Security . | . . . Squads Dispatched 1 | . 1 . Investigation 1 | . 1 . Extermination . | . . . Reinforcement . | . . . Assault . | . . . Garrison . | . . . Intercept . | . . . Searches Triggered . | . . . Construction Impeded . | . . . Haulers Reinforced . | . . . Active Scanning Responses . | . . . Cargo Convoy Interrupts . | . . . Stealth | -11 -10 -10 --------- Run | Yrd Mat Sub Distress Signals . | . . . Communications Jammed . | . . . Distress Signals . | . . . Times Spotted 29 | . 22 7 Peak Tracking Total 4 | . 4 3 Tactical Retreats 2 | . 2 . Traps | -11 -10 -10 ------- Run | Yrd Mat Sub Traps Triggered 1 | . 1 . Indirectly . | . . . Trap Hack Attempts . | . . . Triggered . | . . . Disarmed . | . . . Reprogrammed . | . . . Reused . | . . . Traps Extracted . | . . . Installed . | . . . Triggered . | . . . Machines | -11 -10 -10 ---------- Run | Yrd Mat Sub Machines Disabled . | . . . Max in Single Turn . | . . . Machines Repaired . | . . . Machines Dismantled . | . . . Machines Sabotaged . | . . . Overloaded Fab Kills . | . . . Hacking | -11 -10 -10 --------- Run | Yrd Mat Sub Machines Accessed 7 | . 7 . Terminals 7 | . 7 . Fabricators . | . . . Repair Stations . | . . . Recycling Units . | . . . Scanalyzers . | . . . Garrison Access . | . . . Total Hacks 23 | . 23 . Successful 13 | . 13 . Failed 10 | . 10 . Catastrophic 2 | . 2 . Database Lockouts . | . . . Manual 16 | . 16 . Terminals 23 | . 23 . Fabricators . | . . . Repair Stations . | . . . Recycling Units . | . . . Scanalyzers . | . . . Garrison Access . | . . . Terminal Hacks 5 | . 5 . Branch Access Points 1 | . 1 . Surveillance Status 1 | . 1 . Hauler Manifests 1 | . 1 . Registered Components 1 | . 1 . Zone Layout 1 | . 1 . Fabricator Hacks . | . . . Repair Station Hacks . | . . . Recycling Unit Hacks . | . . . Scanalyzer . | . . . Garrison Access Hacks . | . . . Unauthorized Hacks 8 | . 8 . Terminals 8 | . 8 . Track 1 | . 1 . Botnet 7 | . 7 . Fabricators . | . . . Repair Stations . | . . . Recycling Units . | . . . Scanalyzers . | . . . Garrison Access . | . . . Data Cores Recovered 1 | . 1 . Used 1 | . 1 . Hacking Detections 7 | . 7 . Full Trace Events . | . . . Feedback Events . | . . . Feedback Blocked . | . . . Robot Schematics Acquired . | . . . Robots Built . | . . . Authchips . | . . . Time . | . . . Total Robot Build Rating . | . . . Part Schematics Acquired . | . . . Parts Built . | . . . Authchips . | . . . Time . | . . . Total Part Build Rating . | . . . Parts Repaired . | . . . Time . | . . . Parts Recycled . | . . . Recycled Matter . | . . . Retrieved Matter . | . . . Retrieved Components . | . . . Parts Scanalyzed . | . . . Part Schematics Acquired . | . . . Parts Damaged . | . . . Bothacking | -11 -10 -10 ------------ Run | Yrd Mat Sub Used RIF Installer . | . . . Robots Hacked . | . . . Non-combat . | . . . Combat . | . . . Robot Hacks Applied . | . . . Relay Couplers Released . | . . . Fabnet Peak Effective % . | . . . Robots Rewired . | . . . Allies Hacked . | . . . Hacks Repelled . | . . . Allies | -11 -10 -10 -------- Run | Yrd Mat Sub Total Allies . | . . . Largest Group . | . . . Highest-Rated Group . | . . . Highest-Rated Ally . | . . . Total Orders . | . . . Ally Attacks . | . . . Total Damage . | . . . Kills . | . . . Allies Corrupted . | . . . Allies Melted . | . . . Intel | -11 -10 -10 ------- Run | Yrd Mat Sub Robot Analysis Total . | . . . Derelict Logs Recovered 1 | . . 1 Drone Launches . | . . . Drone Recoveries . | . . . Exploration | -11 -10 -10 ------------- Run | Yrd Mat Sub Turns Passed 1743 | 62 1192 489 Spaces Moved 1148 | 42 774 332 Core 5 | 5 . . Treads . | . . . Legs 1143 | 37 774 332 Wheels . | . . . Hover . | . . . Flight . | . . . Fastest Speed 50 | 50 120 120 Average Speed 119 | 111 120 120 Slowest Speed 120 | 120 120 120 Overloaded Moves . | . . . Propulsion Burnouts . | . . . Robots Hopped . | . . . Cave-ins Triggered . | . . . Exploration Rate (%) 43 | 4 99 28 Regions Visited 2 Branch Regions 1 Pre-discovered Areas 1 | . . 1 Known Exits Taken . | . . . Unknown Exits Taken 2 | 1 1 . Scrap Searched . | . . . Spaces Dug . | . . . Terrain Destroyed . | . . . Melee . | . . . Projectile . | . . . AOE . | . . . Terrain Rammed . | . . . Walls Destroyed . | . . . Machines Disabled . | . . . Actions | -11 -10 -10 --------- Run | Yrd Mat Sub Total 1372 | 53 941 378 Wait 85 | . 78 7 Move 1146 | 41 773 332 Hop . | . . . Pick Up 14 | 5 7 2 Fast Attach 10 | 6 4 . Attach 3 | . 1 2 Detach 1 | . 1 . Swap 10 | 1 7 2 Drop 13 | . 11 2 Fire 85 | . 54 31 Melee . | . . . Ram . | . . . Kick 5 | . 5 . Crush . | . . . Escape Stasis . | . . . Rewire . | . . . Trap . | . . . Miscellaneous . | . . . Route ------- -11/Scrapyard -10/Materials (discovered 6 exits: [*Mat x3] / *Min x2 / [*Sub]) -10/Subcaves (discovered 1 exit: [*Mat]) History --------- Turn | Location | Event 40 | -11/Scrapyard | Discovered new exit (range 15) 63 | -11/Scrapyard | Entered Materials 316 | -10/Materials | Build established: Mutant 487 | -10/Materials | Discovered new exit (range 15) 504 | -10/Materials | Identified exit to Mines 692 | -10/Materials | Build established: Scavenger-Mutant 707 | -10/Materials | Discovered new exit (range 3) 897 | -10/Materials | Discovered new exit (range 16) 1246 | -10/Materials | Discovered new exit (range 8) 1255 | -10/Materials | Entered Subcaves 1403 | -10/Subcaves | Discovered new exit (range 3) 1414 | -10/Subcaves | Learned location of Mines (-9) 1653 | -10/Subcaves | Core integrity fell below 50% 1721 | -10/Subcaves | Core integrity fell below 20% 1744 | -10/Subcaves | Destroyed by U0-MR4(R) with Subdweller Laser Last Messages --------------- 01666_ Terrain Scanner destroyed. 01666_ S-10 Pest destroyed. 01669_ Lgt. Ion Engine fries itself beyond repair. 01672_ Flight Unit fries itself beyond repair. 01672_ Acquired 11 matter. 01679_ Lgt. Assault Rifle fries itself beyond repair. 01680_ Flight Unit fries itself beyond repair. 01721_ Lgt. Assault Rifle destroyed. 01721_ Lgt. Ion Engine destroyed. 01721_ Sub. Beam Cannon melted. 01721_ YQ-FGG(R) destroyed. 01722_ Beam Cannon destroyed. 01727_ U0-MR4(R) affixes Scrap Shield Fragment to Scrap Shield. 01736_ U0-MR4(R) suffers critical hit (Destroy). 01736_ Destroyed Sub. Optics. 01741_ U0-MR4(R) affixes Scrap Shield Fragment to Scrap Shield. Map ----- +----------------------------------------------------+ | ????#?????????##%###????????????#?? ?????# | | ?????????????## ##???????#???#???#?# #???## ## | | ?????#??????## #%#?????????????????# #??## ##### | | ?????##??#### ####????????????????? #??# #???? | | ?????? ### ##?????????? ??????### #??# ##???# | | ?????## # ####??????????## ?????## ??# % #???? | | ?##### ##????????????? ???## #??#% #??#? | | ## #????????????## ?### ####% ##???? | | # ##### #????????????# $ ?# # # # #???? | | ##???## #????????????# ??# #???? | | #?????? #????????????# ???# ##?#?? | | # #?????? #????????????# ###### # # #???? | | # ##??#?? #????????????# #### ######???? | | #?#???##????????????# #????????? | | # #??????????????# ###????????? | | #### #??????????????## ##??????????? | | # ##?????????#????????##### #???????????? | | ###?????????? # ##### # ######???????????? | | ????????? ??? ##????????????????? | | ?????????????? ##????????????????? | | #??????????????# ## # #####????????????? | | ???????????????### ??### " ##???????????? | | ???????????????# ???## " #???????????? | | ??????????????## ####! ##" ##???????????? | | ??????????????# &R% & ######????????????? | | ?#???????????# @="" ##?????????????????? | | ?????????????# & " #??????????????????? | | ?????????????#### """" " #????????????????? | | ????????????????# " " "#??????????????? | | ????????????????? """" " ??????????????? | | ???????????????? """" ??????????????? | | ??????????????????#""" " ?????????????? | | ???????????????????""" ????????????? | | ??????????????????? # ## ???????????? | | ??????????????????? # ###??????????????? | | ??????????????????? ## ????????????????? | | ??????????????????? #?? ##???????????????? | | ??????????????????## #?? ????????????????? | | ???????????????????# ##???#????????????????? | | ????????????????????? ??????????????????????? | | ??????????????????????? ??????????????????????? | | ?????????????????????????????????????????????????? | | ?????????????????????????????????????????????????? | | ?????????????????????????????????????????????????? | | ?????????????????????????????????????????????????? | | ?????????????????????????????????????????????????? | | ?????????????????????????????????????????????????? | | ?????????????????????????????????????????????????? | | ?????????????????????????????????????????????????? | | ?????????????????????????????????????????????????? | +----------------------------------------------------+ Best States ------------- Heat Dissipation 35 Energy Generation 10 Energy Capacity 250 Matter Stores 300 Matter Capacity 300 Sight Range 16 Terrain Scan Range 14 Terrain Scan Density 10 Evasion (%) 55 Item Schematics ----------------- None Robot Schematics ------------------ None Fabricated ------------ Nothing Alien Tech Used ----------------- None Achievements -------------- None Challenges ------------ None Game ------ Seed SmallMiningCharger Manual? 0 Play Time 00:17:17 Cumulative 64.4 hours Start 2024.03.11 @ 18:18:34 End 2024.03.11 @ 18:31:49 Sessions 1 Manual Loads 0 Difficulty Rogue Special Mode None Game No. 44 Rogue 44 Adventurer 0 Explorer 0 Win Type - Total 0 Types 0/0/0/0/0/0/0/0/0 Lore% 25 Gallery% 42 Achievement% 36 Wizard Run 0 Options --------- Layout 1 ASCII 0 Keyboard 0 Movement Numpad Keybinds 0 Fullscreen 2 Font 24/Smallcaps Map View 50x35 Zoom Use 0% Tactical HUD 1 Map Filters NONE Filters NONE Steam 1 RUN: 65cf330a-34df-4453-9ee3-98fd39a3c6f0